bitfinex-derivatives/quotes_SOLF0:USTF0_20240913
["timestamp","ask_amount","ask_price","bid_price","bid_amount"]
[1726241974167,3.6751,136.03,135.95,45.9]
[1726241974772,3.6751,136.03,135.97,3.6766]
[1726241974966,3.6749,136.04,135.97,45.9]
[1726241975161,45.9,136.08,135.97,45.9]
[1726241975360,45.9,136.08,135.99,45.9]
[1726241975670,3.6743,136.06,136.0,3.6757]
[1726241975965,3.6743,136.06,135.99,45.9]
[1726241975966,45.9,136.11,135.99,45.9]
[1726241976166,3.674,136.07,136.01,3.6756]
[1726241976370,45.9,136.11,136.01,45.9]
[1726241976571,3.6742,136.07,136.01,45.9]
[1726241977264,3.59508812,136.12,136.03,3.6749]
[1726241977470,3.59508812,136.12,136.01,45.9]
[1726241977680,50.1119,136.13,136.01,45.9]
[1726241977866,3.6742,136.07,136.01,45.9]
[1726241978267,3.6742,136.07,136.02,3.6752]
[1726241979062,45.9,136.1,135.99,45.9]
[1726241979267,45.9,136.08,135.97,45.9]
[1726241979662,7.83971419,136.13,135.97,45.9]
[1726241979866,45.9,136.1,135.97,49.58527427]
[1726241980268,3.6748,136.04,135.99,3.6761]
[1726241980770,45.9,136.1,135.97,45.9]
[1726241980965,45.9,136.05,135.94,49.64852184]
[1726241981161,45.9,136.05,135.94,45.9]
[1726241981366,3.6757,136.01,135.94,49.49150606]
[1726241981972,3.6754,136.02,135.96,49.5768]
[1726241982165,1.3321,136.04,135.96,49.5768]
[1726241982474,3.6756,136.01,135.94,45.9]
[1726241982676,4.95743616,136.04,135.94,45.9]
[1726241982871,1.3321,136.04,135.94,45.9]
[1726241983177,1.3321,136.04,135.95,3.6772]
[1726241983473,3.6759,136.0,135.95,3.6772]
[1726241983678,1.3321,136.04,135.92,45.9]
[1726241983679,45.9,136.03,135.92,45.9]
[1726241983974,3.6767,135.97,135.92,45.9]
[1726241984269,1.4351,136.02,135.92,45.9]
[1726241984476,3.677,135.96,135.92,45.9]
[1726241984672,45.9,136.01,135.9,45.9]
[1726241985080,3.6777,135.94,135.9,45.9]
[1726241985370,45.9,136.01,135.9,45.9]
[1726241985371,45.9,136.01,135.9,49.5785]
[1726241985677,45.9,136.01,135.89,45.9]
[1726241985871,45.9,136.01,135.93,3.6777]
[1726241986569,1.4351,136.02,135.91,45.9]
[1726241986775,3.6765,135.98,135.91,45.9]
[1726241986975,1.4351,136.02,135.91,45.9]
[1726241987377,3.6767,135.98,135.91,45.9]
[1726241987679,1.4351,136.02,135.91,45.9]
[1726241987878,3.6768,135.97,135.91,45.9]
[1726241988181,1.4351,136.02,135.92,3.6778]
[1726241988572,45.9,136.01,135.91,3.6782]
[1726241988875,3.6777,135.94,135.81,7.3618]
[1726241989075,45.9,135.99,135.88,3.6789]
[1726241989574,45.9,135.99,135.87,45.9]
[1726241989779,45.9,135.99,135.9,3.6786]
[1726241989979,45.9,135.99,135.87,45.9]
[1726241990180,45.9,135.99,135.9,3.6785]
[1726241990480,45.9,135.96,135.85,45.9]
[1726241990779,2.7498,135.95,135.85,45.9]
[1726241990972,2.7498,135.95,135.88,45.9]
[1726241991873,2.7498,135.95,135.88,49.55467233]
[1726241992070,2.7498,135.95,135.9,45.9]
[1726241992274,3.6767,135.97,135.92,3.6779]
[1726241992469,1.4351,136.02,135.92,45.9]
[1726241992470,2.7702,136.01,135.92,45.9]
[1726241992675,3.6763,135.99,135.94,3.6774]
[1726241993076,2.7702,136.01,135.94,45.9]
[1726241993281,6.446,136.01,135.96,3.6768]
[1726241993680,2.7702,136.01,135.94,45.9]
[1726241993887,2.7702,136.01,135.9,45.9]
[1726241994080,2.7702,136.01,135.91,28.27]
[1726241995678,2.7702,136.01,135.93,28.27]
[1726241996070,2.7702,136.01,135.94,3.6774]
[1726241996071,3.6763,135.99,135.94,3.6774]
[1726241996475,2.7702,136.01,135.93,28.27]
[1726241997386,3.6766,135.98,135.93,31.9476]
[1726241997972,2.7702,136.01,135.93,28.27]
[1726241998180,2.7702,136.01,135.91,28.27]
[1726241998385,3.6767,135.97,135.92,3.6779]
[1726241998582,2.7702,136.01,135.91,28.27]
[1726241999177,3.6771,135.96,135.91,31.9481]
[1726242000188,2.7702,136.01,135.91,28.27]
[1726242000883,28.27,135.95,135.79,232.73489774]
[1726242001083,28.27,135.95,135.85,28.27]
[1726242001275,3.6776,135.94,135.88,3.6791]
[1726242001882,3.6778,135.93,135.88,3.6791]
[1726242002086,28.27,135.91,135.71,7.3674]
[1726242002287,28.27,136.0,135.71,7.3674]
[1726242002288,2.7729,135.92,135.82,28.27]
[1726242002585,2.7729,135.92,135.88,28.27]
[1726242002786,1.3882,135.99,135.88,28.27]
[1726242003084,1.3882,135.99,135.9,28.27]
[1726242003492,3.677,135.96,135.9,28.27]
[1726242003692,1.3882,135.99,135.9,28.27]
[1726242003878,1.3882,135.99,135.88,28.27]
[1726242004079,3.6771,135.96,135.88,45.95]
[1726242004483,47.3382,135.99,135.88,49.6968569]
[1726242004888,3.6767,135.97,135.9,3.6786]
[1726242005491,3.6767,135.97,135.9,49.6286]
[1726242005693,3.6764,135.98,135.9,49.6286]
[1726242005883,1.3882,135.99,135.91,3.6783]
[1726242006087,1.3847,136.01,135.92,45.95]
[1726242007279,47.3347,136.01,135.9,45.95]
[1726242007891,3.677,135.96,135.9,45.95]
[1726242008391,3.6766,135.98,135.9,45.95]
[1726242008594,47.3347,136.01,135.9,45.95]
[1726242010700,3.6767,135.97,135.91,3.6782]
[1726242010994,47.3347,136.01,135.92,45.95]
[1726242011198,3.6766,135.98,135.92,49.6278]
[1726242011381,47.3347,136.01,135.92,45.95]
[1726242011788,3.6766,135.98,135.92,53.22877635]
[1726242011988,47.3347,136.01,135.92,45.95]
[1726242012389,47.3347,136.01,135.93,3.71402991]
[1726242012586,1.3847,136.01,135.92,45.95]
[1726242012787,1.3847,136.01,135.94,45.95]
[1726242012987,1.3847,136.01,135.94,49.56579851]
[1726242013188,47.3347,136.01,135.87,1.1865]
[1726242013387,45.95,135.99,135.89,45.95]
[1726242013688,45.95,135.99,135.9,3.64559905]
[1726242013886,3.6771,135.96,135.9,7.32399905]
[1726242014087,45.95,135.97,135.87,47.1365]
[1726242014286,45.95,135.97,135.88,3.70078523]
[1726242014485,45.95,135.99,135.89,45.95]
[1726242014796,47.3347,136.01,135.89,45.95]
[1726242014996,47.3347,136.01,135.9,3.6783]
[1726242015292,1.3847,136.01,135.91,45.95]
[1726242015899,3.6766,135.98,135.92,3.61449094]
[1726242016397,1.3847,136.01,135.89,45.95]
[1726242016582,47.3347,136.01,135.89,45.95]
[1726242016786,47.3347,136.01,135.91,45.95]
[1726242016787,1.3847,136.01,135.91,45.95]
[1726242017092,3.6762,135.99,135.93,45.95]
[1726242017293,1.3847,136.01,135.91,45.95]
[1726242017496,3.6769,135.97,135.91,45.95]
[1726242017897,1.3847,136.01,135.91,45.95]
[1726242018094,1.3847,136.01,135.92,3.70868922]
[1726242018494,1.3847,136.01,135.91,45.95]
[1726242018495,3.6763,135.99,135.93,3.6776]
[1726242018697,1.3847,136.01,135.93,3.6776]
[1726242018698,1.3847,136.01,135.93,7.35971887]
[1726242018898,1.3847,136.01,135.93,3.6776]
[1726242019100,3.6762,135.99,135.93,3.6776]
[1726242019299,1.3847,136.01,135.92,7.35349701]
[1726242019491,1.3847,136.01,135.92,3.67549701]
[1726242019797,3.6766,135.98,135.92,3.67549701]
[1726242019992,3.6766,135.98,135.92,7.35339701]
[1726242020195,3.6763,135.99,135.92,3.67549701]
[1726242020391,1.3847,136.01,135.91,45.95]
[1726242020596,1.3847,136.01,135.93,3.6776]
[1726242020889,3.6764,135.98,135.94,3.59382748]
[1726242021694,7.3465,136.1,135.96,45.95]
[1726242021885,4.0224,136.09,135.99,45.95]
[1726242022085,45.95,136.06,135.97,1.193]
[1726242022300,45.95,136.03,135.93,45.95]
[1726242022594,2.6674,136.02,135.93,45.95]
[1726242022788,2.6674,136.02,135.92,3.60780695]
[1726242022789,2.6674,136.02,135.95,45.95]
[1726242022991,1.3115,136.02,135.95,45.95]
[1726242023287,1.3559,136.07,135.97,45.95]
[1726242023494,2.6674,136.07,135.97,45.95]
[1726242023798,3.6748,136.04,135.99,3.6761]
[1726242023994,3.6748,136.04,135.98,3.72074635]
[1726242024197,1.3115,136.07,135.99,28.23]
[1726242024396,3.6746,136.05,136.0,3.6757]
[1726242024896,3.6746,136.05,136.01,28.23]
[1726242025195,2.6674,136.12,136.03,28.23]
[1726242025495,2.6674,136.12,136.04,3.6745]
[1726242025699,2.6674,136.12,136.03,28.23]
[1726242026685,3.6737,136.08,136.03,31.905]
[1726242027196,3.6737,136.08,136.03,28.23]
[1726242027597,3.6735,136.09,136.03,31.9049]
[1726242027798,2.72,136.14,136.03,28.23]
[1726242027994,2.72,136.14,136.05,28.23]
[1726242028494,7.3387,136.25,136.1,28.23]
[1726242028796,3.6719,136.15,136.1,31.9032]
[1726242029002,2.7085,136.2,136.1,28.23]
[1726242029697,3.672,136.15,136.1,28.23]
[1726242029895,2.7085,136.2,136.1,28.23]
[1726242030092,2.7085,136.2,136.12,28.23]
[1726242030293,3.6719,136.15,136.12,28.23]
[1726242030493,2.7085,136.2,136.1,28.23]
[1726242030809,28.23,136.19,136.07,1.1925]
[1726242031097,28.23,136.17,136.07,1.1925]
[1726242031695,1.4386,136.16,136.07,1.1925]
[1726242031892,3.6725,136.13,136.08,3.6735]
[1726242032204,2.7085,136.2,136.12,28.23]
[1726242033099,2.7085,136.2,136.12,31.9025]
[1726242033408,2.7085,136.2,136.12,28.23]
[1726242033693,2.7085,136.2,136.13,3.6723]
[1726242033694,3.671,136.19,136.13,3.6723]
[1726242033896,2.7085,136.2,136.12,28.23]
[1726242034096,2.7085,136.2,136.12,31.91200382]
[1726242034701,3.6716,136.16,136.12,31.91200382]
[1726242035004,2.7085,136.2,136.12,31.91200382]
[1726242035302,2.7085,136.2,136.07,1.1925]
[1726242035303,30.9385,136.2,136.1,28.23]
[1726242035501,34.66663559,136.2,136.1,31.97135984]
[1726242035800,3.6721,136.15,136.1,31.97135984]
[1726242036101,30.9385,136.2,136.09,3.72813559]
[1726242036292,30.9385,136.2,136.08,3.6737]
[1726242036492,30.9385,136.2,136.07,29.4225]
[1726242036493,28.23,136.18,136.07,29.4225]
[1726242036697,28.23,136.18,136.07,33.11647296]
[1726242036900,3.6725,136.13,136.07,36.79027296]
[1726242037098,28.23,136.18,136.07,33.11647296]
[1726242037496,2.7085,136.2,136.1,28.23]
[1726242037497,30.9385,136.2,136.1,28.23]
[1726242037893,3.6708,136.19,136.13,3.6722]
[1726242038096,2.7085,136.2,136.12,28.23]
[1726242038497,3.6712,136.18,136.14,28.23]
[1726242038692,7.67152077,136.33,136.16,28.23]
[1726242038900,4.0962,136.31,136.19,28.23]
[1726242039499,28.23,136.3,136.19,28.23]
[1726242039693,3.6701,136.22,136.19,28.23]
[1726242039898,28.23,136.3,136.19,28.23]
[1726242040094,4.0962,136.31,136.21,45.8]
[1726242040300,3.6691,136.26,136.21,49.4702]
[1726242040494,4.0962,136.31,136.21,45.8]
[1726242040703,4.0962,136.31,136.23,45.8]
[1726242041699,3.6682,136.29,136.23,45.8]
[1726242041914,4.0962,136.31,136.23,49.4697]
[1726242042106,4.0962,136.31,136.23,45.8]
[1726242042406,3.6682,136.29,136.23,45.8]
[1726242042804,2.7339,136.31,136.23,49.4694]
[1726242042805,3.6685,136.28,136.23,49.4694]
[1726242043107,2.7339,136.31,136.23,49.4694]
[1726242043307,2.7339,136.31,136.23,45.8]
[1726242043605,3.6322598,136.34,136.25,45.8]
[1726242043908,3.6676,136.31,136.26,3.6687]
[1726242044211,3.6676,136.31,136.27,45.8]
[1726242044508,3.6677,136.31,136.27,45.8]
[1726242044908,3.6677,136.31,136.27,49.4685]
[1726242045111,3.6677,136.31,136.27,45.8]
[1726242045411,1.3808,136.33,136.25,45.8]
[1726242046005,1.3808,136.33,136.25,49.4691]
[1726242046308,1.3808,136.33,136.27,45.8]
[1726242046509,3.6675,136.32,136.27,49.4684]
[1726242047700,3.74750671,136.36,136.27,49.4684]
[1726242047904,2.8285,136.37,136.27,45.8]
[1726242049107,3.6672,136.33,136.27,45.8]
[1726242049309,2.8285,136.37,136.29,45.8]
[1726242049518,2.8285,136.37,136.31,45.8]
[1726242050722,3.6663,136.36,136.31,49.4674]
[1726242050919,1.4456,136.39,136.31,49.4674]
[1726242051333,1.4456,136.39,136.33,45.8]
[1726242053128,3.6661,136.37,136.33,45.8]
[1726242053330,3.6661,136.37,136.33,49.467]
[1726242053829,3.6656,136.38,136.33,49.467]
[1726242054028,3.6656,136.38,136.34,3.6667]
[1726242054223,5.067,136.4,136.35,45.8]
[1726242054427,1.4017,136.4,136.35,45.8]
[1726242054837,3.6658,136.38,136.35,45.8]
[1726242055227,1.4017,136.4,136.33,45.8]
[1726242055633,1.4017,136.4,136.33,49.44994122]
[1726242055936,3.6658,136.38,136.33,49.44994122]
[1726242056237,1.4017,136.4,136.33,49.44994122]
[1726242057336,3.62389903,136.41,136.33,53.14875208]
[1726242057534,3.6659,136.38,136.35,45.8]
[1726242057731,3.57961265,136.41,136.35,45.8]
[1726242057932,1.3329,136.43,136.35,45.8]
[1726242058127,3.666,136.37,136.35,45.8]
[1726242059646,3.69478822,136.42,136.35,45.8]
[1726242059829,1.3329,136.43,136.35,45.8]
[1726242060644,3.6661,136.37,136.35,45.8]
[1726242061048,1.3329,136.43,136.35,45.8]
[1726242061346,3.6658,136.38,136.35,45.8]
[1726242062040,3.6659,136.37,136.35,45.8]
[1726242062246,3.71229576,136.42,136.34,28.17]
[1726242063340,3.6661,136.37,136.34,31.8367]
[1726242063735,3.71229576,136.42,136.2,3.57658294]
[1726242064044,3.71229576,136.42,129.18,8.80823287]
[1726242064045,28.17,136.35,136.23,28.17]
[1726242064241,4.1587,136.34,136.23,31.90237268]
[1726242064439,4.1587,136.34,136.23,31.92035914]
[1726242064637,4.1587,136.34,136.24,3.6692]
[1726242064835,4.1587,136.34,136.23,31.92035914]
[1726242065348,3.6685,136.28,136.23,31.92035914]
[1726242065840,28.17,136.33,136.23,28.17]
[1726242066648,4.1587,136.34,136.23,28.17]
[1726242066947,4.1587,136.34,136.24,3.6692]
[1726242067143,4.1587,136.34,136.27,28.17]
[1726242067340,4.1587,136.34,136.25,31.839]
[1726242067543,32.3287,136.34,136.22,28.17]
[1726242067748,4.1587,136.34,136.22,28.17]
[1726242068046,28.17,136.32,136.2,28.17]
[1726242068452,28.17,136.32,136.2,31.8403]
[1726242068744,28.17,136.32,136.2,28.17]
[1726242068949,28.17,136.32,136.21,3.6701]
[1726242069144,3.6693,136.25,136.21,3.6701]
[1726242069744,3.669,136.26,136.22,3.6698]
[1726242070051,28.17,136.32,136.2,28.17]
[1726242070450,28.17,136.32,136.21,3.67]
[1726242070648,28.17,136.32,136.2,28.17]
[1726242071043,4.1587,136.34,136.2,28.17]
[1726242071250,3.6696,136.24,136.2,28.17]
[1726242071549,28.17,136.3,136.2,31.8404]
[1726242072147,28.17,136.3,136.18,197.59544316]
[1726242072347,28.17,136.25,136.15,28.17]
[1726242072545,26.1987,136.34,136.15,28.17]
[1726242072747,28.17,136.27,136.18,3.671]
[1726242073051,2.8264,136.26,136.16,3.72264135]
[1726242073241,2.8264,136.26,136.18,3.6708]
[1726242073444,2.8264,136.26,136.16,3.72264135]
[1726242073648,2.8264,136.26,136.15,28.17]
[1726242074146,3.6699,136.23,136.15,31.89814191]
[1726242074350,2.8264,136.26,136.18,3.6708]
[1726242074654,2.8264,136.26,136.2,28.17]
[1726242074862,2.8264,136.26,136.21,3.6701]
[1726242075058,35.5044,136.33,136.22,28.17]
[1726242075257,35.5044,136.33,136.23,3.6697]
[1726242075258,1.44,136.3,136.23,3.6697]
[1726242076253,1.44,136.3,136.22,28.17]
[1726242076453,1.44,136.3,136.24,28.17]
[1726242076651,2.774,136.32,136.24,28.17]
[1726242076858,3.6681,136.29,136.25,3.6689]
[1726242077365,2.774,136.32,136.24,28.17]
[1726242077559,1.3429,136.32,136.24,28.17]
[1726242077759,1.3904,136.37,136.28,28.17]
[1726242077960,3.6669,136.34,136.29,3.6679]
[1726242078159,2.8061,136.39,136.31,28.17]
[1726242078558,3.6669,136.34,136.31,28.17]
[1726242078754,2.8061,136.39,136.31,28.17]
[1726242078964,3.6672,136.32,136.31,28.17]
[1726242079149,2.8061,136.39,136.31,28.17]
[1726242080664,3.6672,136.33,136.31,28.17]
[1726242081054,3.666,136.37,136.31,28.17]
[1726242081267,2.8061,136.39,136.31,28.17]
[1726242082672,2.8061,136.39,136.19,35.5112]
[1726242082673,28.17,136.38,136.29,28.17]
[1726242082873,28.17,136.38,136.26,31.85192895]
[1726242083056,28.17,136.38,136.26,28.17]
[1726242083262,28.17,136.36,136.26,28.17]
[1726242083466,1.4045,136.35,136.24,31.84826023]
[1726242083671,1.4045,136.35,136.24,28.17]
[1726242084165,28.17,136.31,136.2,28.17]
[1726242084364,3.6689,136.26,136.2,31.89181623]
[1726242084564,2.8182,136.3,136.22,28.17]
[1726242084765,3.6692,136.25,136.22,31.8398]
[1726242084966,2.8182,136.3,136.2,28.17]
[1726242085863,3.67,136.22,136.19,3.6707]
[1726242086064,28.17,136.29,136.18,28.17]
[1726242086269,1.4509,136.28,136.18,28.17]
[1726242086976,3.6697,136.23,136.19,3.6706]
[1726242087172,1.4509,136.28,136.18,28.17]
[1726242087475,3.67,136.22,136.19,3.6707]
[1726242087677,3.67,136.22,136.18,28.17]
[1726242088070,3.67,136.22,136.18,31.8409]
[1726242088471,29.6209,136.28,136.18,28.17]
[1726242089071,29.6209,136.28,136.18,31.8408]
[1726242089372,29.6209,136.28,136.18,28.17]
[1726242089571,3.6698,136.23,136.19,3.6706]
[1726242089778,1.4509,136.28,136.19,3.6706]
[1726242090070,1.4509,136.28,136.18,28.17]
[1726242090276,3.6699,136.23,136.19,3.6706]
[1726242090469,1.4509,136.28,136.18,28.17]
[1726242090872,1.4509,136.28,136.15,28.17]
[1726242090873,28.17,136.25,136.15,28.17]
[1726242091273,3.6702,136.22,136.18,3.6709]
[1726242092373,29.6209,136.28,136.17,28.17]
[1726242092679,1.4509,136.28,136.17,28.17]
[1726242092876,1.4509,136.28,136.19,3.6705]
[1726242093373,1.4509,136.28,136.2,3.6702]
[1726242093572,1.4509,136.28,136.19,28.17]
[1726242093768,3.6693,136.25,136.19,28.17]
[1726242093975,1.4509,136.28,136.19,28.17]
[1726242094275,3.6693,136.25,136.2,3.6704]
[1726242094780,2.8182,136.3,136.21,28.17]
[1726242095378,2.8182,136.3,136.24,28.17]
[1726242095379,3.6684,136.28,136.24,28.17]
[1726242095570,1.3988,136.3,136.24,28.17]
[1726242096277,1.3988,136.3,136.21,28.17]
[1726242096874,3.6691,136.26,136.21,31.84]
[1726242097070,3.6691,136.26,136.21,28.17]
[1726242098166,1.3988,136.3,136.21,28.17]
[1726242098576,3.6695,136.24,136.21,28.17]
[1726242098871,29.5688,136.3,136.21,28.17]
[1726242099282,3.6694,136.25,136.21,28.17]
[1726242099678,3.67,136.22,136.19,28.17]
[1726242099974,1.3988,136.3,136.21,28.17]
[1726242100380,1.3988,136.3,136.21,31.8401]
[1726242100577,1.3988,136.3,136.19,28.17]
[1726242100777,3.6697,136.24,136.19,31.8406]
[1726242101081,29.5688,136.3,136.19,28.17]
[1726242101578,3.6698,136.23,136.19,31.8407]
[1726242102177,3.6701,136.22,136.19,28.17]
[1726242102770,3.68940591,136.26,136.17,28.17]
[1726242102976,29.56,136.25,136.14,28.17]
[1726242103173,29.56,136.25,136.15,3.60034508]
[1726242103476,29.56,136.25,136.15,7.27204508]
[1726242104490,3.6706,136.2,136.15,7.27204508]
[1726242104785,29.56,136.25,136.16,3.6715]
[1726242104985,3.6703,136.21,136.16,28.17]
[1726242105281,1.39,136.25,136.16,28.17]
[1726242105480,3.6702,136.22,136.16,28.17]
[1726242105689,29.56,136.25,136.12,3.6725]
[1726242105877,29.56,136.25,136.13,31.77328294]
[1726242106073,29.56,136.25,136.13,28.17]
[1726242106284,1.39,136.25,136.16,28.17]
[1726242106683,1.39,136.25,136.18,28.17]
[1726242107681,3.6707,136.19,136.18,28.17]
[1726242107886,3.6707,136.19,136.16,28.17]
[1726242108086,3.6704,136.21,136.18,28.17]
[1726242108280,1.39,136.25,136.18,28.17]
[1726242108672,3.6706,136.2,136.18,28.17]
[1726242109478,1.39,136.25,136.18,28.17]
[1726242112485,3.6706,136.2,136.18,28.17]
[1726242113088,1.39,136.25,136.18,28.17]
[1726242114384,3.6704,136.21,136.18,28.17]
[1726242114580,7.3389,136.24,136.13,28.17]
[1726242114781,29.56,136.25,136.14,3.65596863]
[1726242114782,3.6709,136.19,136.14,3.65596863]
[1726242114985,3.6709,136.19,136.16,28.17]
[1726242115285,1.3882,136.23,136.16,28.17]
[1726242115488,3.6704,136.21,136.18,3.6709]
[1726242115985,3.6706,136.2,136.17,3.6712]
[1726242117088,3.6706,136.2,136.16,35.56677878]
[1726242117386,1.3882,136.23,136.18,28.17]
[1726242119083,3.6703,136.21,136.18,28.17]
[1726242119382,3.6703,136.21,136.18,31.841]
[1726242119783,3.6703,136.21,136.18,28.17]
[1726242121187,1.3399,136.28,136.2,3.6705]
[1726242121385,1.3399,136.28,136.2,28.17]
[1726242121590,2.8564,136.31,136.2,28.17]
[1726242121591,2.8564,136.31,136.23,28.17]
[1726242122183,3.6691,136.26,136.23,28.17]
[1726242122385,6.59123439,136.31,136.23,28.17]
[1726242122588,2.8564,136.31,136.23,28.17]
[1726242122795,3.6691,136.26,136.23,28.17]
[1726242123195,3.73456433,136.29,136.23,28.17]
[1726242123496,3.6689,136.26,136.23,31.8395]
[1726242124002,3.64388036,136.29,136.23,28.17]
[1726242124191,4.3004,136.31,136.23,28.17]
[1726242124497,3.6693,136.25,136.23,28.17]
[1726242125300,3.7554914,136.29,136.2,28.17]
[1726242125486,4.3004,136.31,136.2,28.17]
[1726242125693,3.6698,136.23,136.2,28.17]
[1726242125998,3.59200213,136.24,136.18,28.17]
[1726242126192,28.17,136.3,136.18,31.8409]
[1726242126390,7.3363,136.29,136.18,28.17]
[1726242126698,4.3004,136.31,136.23,28.17]
[1726242127396,7.95225659,136.31,136.23,28.17]
[1726242127788,3.6691,136.26,136.23,28.17]
[1726242128200,7.95225659,136.31,136.23,28.17]
[1726242128495,36.12225659,136.31,136.21,28.17]
[1726242128802,36.12225659,136.31,136.2,3.6703]
[1726242129003,3.6694,136.24,136.2,3.6703]
[1726242129194,36.12225659,136.31,136.19,3.74953319]
[1726242129399,36.12225659,136.31,136.1,22.04]
[1726242129400,3.6701,136.22,136.18,3.61019927]
[1726242129695,28.17,136.29,136.17,28.17]
[1726242129896,28.17,136.27,136.15,31.8416]
[1726242130103,28.17,136.27,136.15,28.17]
[1726242130401,28.17,136.24,136.15,28.17]
[1726242130703,1.3646,136.23,136.15,28.17]
[1726242130901,2.8118,136.23,136.13,31.8423]
[1726242131103,4.186,136.23,136.13,31.8423]
[1726242131289,4.186,136.23,136.13,28.17]
[1726242131490,4.186,136.23,136.15,3.6718]
[1726242131896,4.186,136.23,136.16,3.6715]
[1726242132104,4.186,136.23,136.15,31.81103998]
[1726242132396,4.186,136.23,136.15,28.17]
[1726242132397,3.6704,136.21,136.15,28.17]
[1726242132596,3.6704,136.21,136.16,3.6715]
[1726242132797,3.6704,136.21,136.16,7.35244247]
[1726242133601,3.67,136.22,136.17,3.6712]
[1726242133800,1.4036,136.28,136.12,28.17]
[1726242134000,4.0712,136.28,136.19,28.17]
[1726242134201,3.6692,136.25,136.2,3.6704]
[1726242134503,2.6676,136.28,136.21,28.17]
[1726242135205,3.6687,136.27,136.22,3.6697]
[1726242135407,28.17,136.33,136.23,28.17]
[1726242135608,2.7023,136.32,136.23,28.17]
[1726242135805,3.6684,136.28,136.23,31.8395]
[1726242136199,3.6684,136.28,136.23,28.17]
[1726242136806,3.6682,136.29,136.24,3.6692]
[1726242137104,2.7023,136.32,136.25,28.17]
[1726242137301,5.021,136.32,136.27,31.8384]
[1726242137501,3.6673,136.32,136.27,31.8384]
[1726242137704,3.6673,136.32,136.27,28.17]
[1726242137901,3.6671,136.33,136.27,28.17]
[1726242138411,3.6671,136.33,136.29,3.668]
[1726242138608,3.6671,136.33,136.27,28.17]
[1726242139007,3.6671,136.33,136.28,3.6682]
[1726242139610,3.6672,136.32,136.28,3.6682]
[1726242139806,4.92231266,136.36,136.28,3.6682]
[1726242140205,3.6672,136.33,136.28,3.6682]
[1726242140512,4.92231266,136.36,136.28,3.6682]
[1726242141312,3.6676,136.31,136.27,31.8385]
[1726242141610,1.3202,136.36,136.25,28.17]
[1726242141804,1.3202,136.36,136.19,28.17]
[1726242141805,3.6682,136.29,136.23,28.17]
[1726242142008,28.17,136.35,136.23,28.17]
[1726242142200,28.17,136.33,136.21,28.17]
[1726242142407,3.6689,136.26,136.22,3.6698]
[1726242142612,1.3105,136.32,136.21,28.17]
[1726242142804,1.3105,136.32,136.23,3.6695]
[1726242143009,3.6686,136.27,136.23,3.6695]
[1726242143212,1.3105,136.32,136.21,28.17]
[1726242143416,3.6682,136.29,136.24,3.6693]
[1726242143611,1.3105,136.32,136.24,3.6693]